fUST/lending_fUST_20260330
["ID","MTS","AMOUNT","RATE_DAILY","PERIOD"]
[419092050,1774863052519,-2836.716383,0.000249,2]
[419092051,1774863052530,-2836.716383,0.000249,2]
[419092052,1774863052539,-2836.716383,0.000249,2]
[419092053,1774863052549,-2836.716383,0.000249,2]
[419092054,1774863052558,-195.788656,0.000249,2]
[419092055,1774863052568,-195.788656,0.000249,2]
[419092056,1774863052578,-195.788656,0.000249,2]
[419092057,1774863052589,-195.788656,0.000249,2]
[419092058,1774863052598,-385.188118,0.000249,2]
[419092059,1774863052608,-385.188118,0.000249,2]
[419092060,1774863052617,-385.188118,0.000249,2]
[419092061,1774863052627,-385.188118,0.000249,2]
[419092062,1774863052637,-171.94997,0.000249,2]
[419092063,1774863052647,-171.94997,0.000249,2]
[419092064,1774863052659,-171.94997,0.000249,2]
[419092065,1774863052669,-171.94997,0.000249,2]
[419092066,1774863052679,-334.07276,0.000249,2]
[419092067,1774863052689,-334.07276,0.000249,2]
[419092068,1774863052698,-334.07276,0.000249,2]
[419092069,1774863052708,-334.07276,0.000249,2]
[419092070,1774863052717,-151.0,0.000249,2]
[419092071,1774863052726,-151.0,0.000249,2]
[419092072,1774863052736,-151.0,0.000249,2]
[419092073,1774863052745,-151.0,0.000249,2]
[419092074,1774863052754,-151.0,0.000249,2]
[419092075,1774863052763,-151.0,0.000249,2]
[419092076,1774863052772,-2792.842923,0.000249,2]
[419092077,1774863052782,-2792.842923,0.000249,2]
[419092078,1774863052791,-2792.842923,0.000249,2]
[419092079,1774863052800,-2792.842923,0.000249,2]
[419092080,1774863052809,-850.220433,0.000249,2]
[419092081,1774863052820,-628502.974907,0.000249,2]
[419092082,1774863052829,-334.853446,0.000249,2]
[419092083,1774863052839,-964.422525,0.000249,2]
[419092084,1774863052850,-964.422525,0.000249,2]
[419092085,1774863052859,-334.853446,0.000249,2]
[419092086,1774863052869,-964.422525,0.000249,2]
[419092087,1774863052879,-334.853446,0.000249,2]
[419092088,1774863052889,-964.422525,0.000249,2]
[419092089,1774863052899,-334.853446,0.000249,2]
[419092090,1774863052909,-500.0,0.00024931,9]
[419092091,1774863052918,-588.83143839,0.00024931,2]
[419092092,1774863052927,-500.0,0.00024931,9]
[419092093,1774863052937,-627.1,0.00024931,9]
[419092094,1774863052946,-500.0,0.00024931,7]
[419092095,1774863052956,-500.0,0.00024931,9]
[419092096,1774863052968,-500.0,0.00024931,9]
[419092097,1774863052979,-500.0,0.00024931,9]
[419092098,1774863052988,-1000.0,0.00024931,2]
[419092099,1774863052999,-601.51830017,0.00024931,9]
[419092100,1774863053010,-1000.0,0.00024931,2]
[419092101,1774863053019,-500.0,0.00024931,9]
[419092102,1774863053030,-500.0,0.00024931,9]
[419092103,1774863053040,-500.0,0.00024931,9]
[419092104,1774863053050,-500.0,0.00024931,9]
[419092105,1774863053060,-568.00989034,0.00024931,9]
[419092106,1774863053071,-500.0,0.00024931,2]
[419092107,1774863053081,-499.85431097,0.00024931,9]
[419092108,1774863053090,-500.0,0.00024931,9]
[419092109,1774863053100,-500.0,0.00024931,9]
[419092110,1774863053111,-500.0,0.00024931,9]
[419092111,1774863053121,-550.00037195,0.00024931,9]
[419092112,1774863053131,-500.0,0.00024931,9]
[419092113,1774863053140,-500.0,0.00024931,9]
[419092114,1774863053149,-500.0,0.00024931,9]
[419092115,1774863053160,-500.0,0.00024931,9]
[419092116,1774863053169,-500.0,0.00024931,7]
[419092117,1774863053179,-508.7,0.00024931,9]
[419092118,1774863053189,-839.98,0.00024931,9]
[419092119,1774863053198,-1035.51,0.00024931,9]
[419092120,1774863053208,-500.0,0.00024931,9]
[419092121,1774863053217,-500.0,0.00024931,9]
[419092122,1774863053227,-500.0,0.00024931,9]
[419092123,1774863053237,-500.0,0.00024931,9]
[419092124,1774863053247,-500.0,0.00024931,9]
[419092125,1774863053257,-527.44702712,0.00024931,9]
[419092126,1774863053266,-500.0,0.00024931,9]
[419092127,1774863053275,-714.85,0.00024931,9]
[419092128,1774863053284,-701.0,0.00024931,9]
[419092129,1774863053292,-500.0,0.00024931,9]
[419092130,1774863053302,-500.0,0.00024931,9]
[419092131,1774863053311,-251.14508608,0.00024931,9]
[419092132,1774863053320,-500.0,0.00024931,9]
[419092133,1774863053329,-500.0,0.00024931,9]
[419092134,1774863053339,-500.0,0.00024931,9]
[419092135,1774863053348,-166.6981186,0.00024931,9]
[419092136,1774863053357,-500.0,0.00024931,9]
[419092137,1774863053366,-500.0,0.00024931,2]
[419092138,1774863053375,-500.0,0.00024931,9]
[419092139,1774863053383,-500.0,0.00024931,9]
[419092140,1774863053392,-500.0,0.00024931,9]
[419092141,1774863053402,-200.98685946,0.00024931,9]
[419092142,1774863053412,-219.69295164,0.00024931,9]
[419092143,1774863053421,-500.0,0.00024931,9]
[419092144,1774863053430,-549.84375064,0.00024931,9]
[419092145,1774863053438,-500.0,0.00024931,9]
[419092146,1774863053447,-500.0,0.00024931,9]
[419092147,1774863053456,-500.0,0.00024931,9]
[419092148,1774863053465,-520.72658352,0.00024931,9]
[419092149,1774863053474,-295.6177215,0.00024931,9]
[419092150,1774863053483,-502.0669118,0.00024931,9]
[419092151,1774863053492,-11011.9160776,0.00024997,2]
[419092152,1774863053501,-1283.14812297,0.00025,2]
[419092153,1774863053510,-996.0,0.00025,2]
[419092154,1774863053520,-200.0,0.00025,2]
[419092155,1774863053529,-20000.0,0.00025,3]
[419092156,1774863053538,-200.47410242,0.00025,120]
[419092157,1774863053548,-240.0,0.00025,2]
[419092158,1774863053557,-185.0,0.00025,2]
[419092159,1774863053565,-1034.53921274,0.00025,2]
[419092160,1774863053575,-586.16875446,0.000252,5]
[419092161,1774863053585,-500.0,0.00025205,9]
[419092162,1774863053594,-215.17001582,0.00025205,9]
[419092163,1774863053604,-627.1,0.00025205,9]
[419092164,1774863053614,-500.0,0.00025205,7]
[419092165,1774863053623,-493.52799921,0.00025205,9]
[419092166,1774863053633,-500.0,0.00025205,9]
[419092167,1774863053643,-500.0,0.00025205,9]
[419092168,1774863053652,-1000.0,0.00025205,2]
[419092169,1774863053663,-1000.0,0.00025205,2]
[419092170,1774863053671,-500.0,0.00025205,9]
[419092171,1774863053681,-500.0,0.00025205,9]
[419092172,1774863053690,-500.0,0.00025205,9]
[419092173,1774863053699,-500.0,0.00025205,9]
[419092174,1774863053708,-500.0,0.00025205,9]
[419092175,1774863053717,-500.0,0.00025205,9]
[419092176,1774863053726,-500.0,0.00025205,9]
[419092177,1774863053736,-500.0,0.00025205,9]
[419092178,1774863053745,-500.0,0.00025205,9]
[419092179,1774863053754,-500.0,0.00025205,9]
[419092180,1774863053763,-500.0,0.00025205,9]
[419092181,1774863053773,-500.0,0.00025205,7]
[419092182,1774863053783,-508.7,0.00025205,9]
[419092183,1774863053793,-839.98,0.00025205,9]
[419092184,1774863053803,-1035.51,0.00025205,9]
[419092185,1774863053812,-500.0,0.00025205,9]
[419092186,1774863053822,-500.0,0.00025205,9]
[419092187,1774863053831,-500.0,0.00025205,9]
[419092188,1774863053841,-500.0,0.00025205,9]
[419092189,1774863053850,-500.0,0.00025205,9]
[419092190,1774863053859,-500.0,0.00025205,9]
[419092191,1774863053868,-714.85,0.00025205,9]
[419092192,1774863053878,-701.0,0.00025205,9]
[419092193,1774863053887,-500.0,0.00025205,9]
[419092194,1774863053897,-500.0,0.00025205,9]
[419092195,1774863053907,-500.0,0.00025205,9]
[419092196,1774863053916,-500.0,0.00025205,9]
[419092197,1774863053926,-500.0,0.00025205,9]
[419092198,1774863053937,-166.6981186,0.00025205,9]
[419092199,1774863053946,-500.0,0.00025205,9]
[419092200,1774863053957,-500.0,0.00025205,2]
[419092201,1774863053967,-500.0,0.00025205,9]
[419092202,1774863053976,-221.72621734,0.00025205,9]
[419092203,1774863053987,-500.0,0.00025205,9]
[419092204,1774863053996,-500.0,0.00025205,9]
[419092205,1774863054006,-196.0594328,0.00025205,9]
[419092206,1774863054016,-294.59361151,0.00025205,9]
[419092207,1774863054026,-168.99481677,0.00025205,9]
[419092208,1774863054037,-250.0,0.00025205,2]
[419092209,1774863054047,-156.0,0.00025388,2]
[419092210,1774863054057,-1439.96661636,0.0002543,2]
[419092211,1774863054067,-3054478.2467,0.00025444,2]
[419092212,1774863054076,-151.0,0.00025444,2]
[419092213,1774863054086,-151.0,0.00025444,2]
[419092214,1774863054095,-151.0,0.00025444,2]
[419092215,1774863054104,-151.0,0.00025444,2]
[419092216,1774863054114,-2836.716383,0.00025444,2]
[419092217,1774863054123,-2836.716383,0.00025444,2]
[419092218,1774863054133,-2836.716383,0.00025444,2]
[419092219,1774863054142,-2836.716383,0.00025444,2]
[419092220,1774863054151,-195.788656,0.00025444,2]
[419092221,1774863054161,-195.788656,0.00025444,2]
[419092222,1774863054169,-195.788656,0.00025444,2]
[419092223,1774863054179,-195.788656,0.00025444,2]
[419092224,1774863054188,-385.188118,0.00025444,2]
[419092225,1774863054197,-385.188118,0.00025444,2]
[419092226,1774863054206,-385.188118,0.00025444,2]
[419092227,1774863054215,-385.188118,0.00025444,2]
[419092228,1774863054224,-171.94997,0.00025444,2]
[419092229,1774863054233,-171.94997,0.00025444,2]
[419092230,1774863054243,-171.94997,0.00025444,2]
[419092231,1774863054252,-171.94997,0.00025444,2]
[419092232,1774863054261,-334.07276,0.00025444,2]
[419092233,1774863054270,-334.07276,0.00025444,2]
[419092234,1774863054279,-334.07276,0.00025444,2]
[419092235,1774863054289,-334.07276,0.00025444,2]
[419092236,1774863054298,-151.0,0.00025444,2]
[419092237,1774863054307,-151.0,0.00025444,2]
[419092238,1774863054317,-151.0,0.00025444,2]
[419092239,1774863054326,-151.0,0.00025444,2]
[419092240,1774863054335,-151.0,0.00025444,2]
[419092241,1774863054344,-2792.842923,0.00025444,2]
[419092242,1774863054353,-2792.842923,0.00025444,2]
[419092243,1774863054363,-2792.842923,0.00025444,2]
[419092244,1774863054372,-2792.842923,0.00025444,2]
[419092245,1774863054382,-850.220433,0.00025444,2]
[419092246,1774863054391,-964.422525,0.00025444,2]
[419092247,1774863054400,-334.853446,0.00025444,2]
[419092248,1774863054410,-964.422525,0.00025444,2]
[419092249,1774863054419,-334.853446,0.00025444,2]
[419092250,1774863054428,-964.422525,0.00025444,2]
[419092251,1774863054437,-334.853446,0.00025444,2]
[419092252,1774863054447,-964.422525,0.00025444,2]
[419092253,1774863054456,-334.853446,0.00025444,2]
[419092254,1774863054466,-900.0,0.00025469,3]
[419092255,1774863054475,-166.69811862,0.00025479,9]
[419092256,1774863054484,-500.0,0.00025479,9]
[419092257,1774863054494,-627.1,0.00025479,9]
[419092258,1774863054503,-500.0,0.00025479,7]
[419092259,1774863054512,-500.0,0.00025479,9]
[419092260,1774863054522,-500.0,0.00025479,9]
[419092261,1774863054531,-1000.0,0.00025479,2]
[419092262,1774863054621,-1000.0,0.00025479,2]
[419092263,1774863054631,-500.0,0.00025479,9]
[419092264,1774863054641,-519.96651614,0.00025479,9]
[419092265,1774863054650,-500.0,0.00025479,9]
[419092266,1774863054660,-500.0,0.00025479,9]
[419092267,1774863054669,-500.0,0.00025479,9]
[419092268,1774863054679,-500.0,0.00025479,9]
[419092269,1774863054689,-500.0,0.00025479,9]
[419092270,1774863054699,-500.0,0.00025479,9]
[419092271,1774863054708,-500.0,0.00025479,9]
[419092272,1774863054718,-427.63756195,0.00025479,9]
[419092273,1774863054727,-500.0,0.00025479,9]
[419092274,1774863054737,-500.0,0.00025479,7]
[419092275,1774863054747,-508.7,0.00025479,9]
[419092276,1774863054758,-839.98,0.00025479,9]
[419092277,1774863054767,-1035.51,0.00025479,9]
[419092278,1774863054778,-415.06631143,0.00025479,9]
[419092279,1774863054788,-233.81349511,0.00025479,9]
[419092280,1774863054797,-500.0,0.00025479,9]
[419092281,1774863054806,-500.0,0.00025479,9]
[419092282,1774863054816,-500.0,0.00025479,9]
[419092283,1774863054826,-458.97823207,0.00025479,9]
[419092284,1774863054836,-714.85,0.00025479,9]
[419092285,1774863054845,-701.0,0.00025479,9]
[419092286,1774863054855,-448.6433785,0.00025479,9]
[419092287,1774863054863,-416.60033578,0.00025479,9]
[419092288,1774863054873,-500.0,0.00025479,9]
[419092289,1774863054882,-500.0,0.00025479,9]
[419092290,1774863054891,-500.0,0.00025479,9]
[419092291,1774863054900,-500.0,0.00025479,9]
[419092292,1774863054910,-500.0,0.00025479,2]
[419092293,1774863054918,-500.0,0.00025479,9]
[419092294,1774863054927,-500.0,0.00025479,9]
[419092295,1774863054936,-500.0,0.00025479,9]
[419092296,1774863054946,-1000.0,0.000255,2]
[419092297,1774863054955,-500.0,0.00025753,9]
[419092298,1774863054964,-627.1,0.00025753,9]
[419092299,1774863054974,-500.0,0.00025753,7]
[419092300,1774863054983,-500.0,0.00025753,9]
[419092301,1774863054992,-500.0,0.00025753,9]
[419092302,1774863055001,-1000.0,0.00025753,2]
[419092303,1774863055010,-1000.0,0.00025753,2]
[419092304,1774863055019,-500.0,0.00025753,9]
[419092305,1774863055028,-500.0,0.00025753,9]
[419092306,1774863055037,-500.0,0.00025753,9]
[419092307,1774863055047,-500.0,0.00025753,9]
[419092308,1774863055056,-500.0,0.00025753,9]
[419092309,1774863055066,-500.0,0.00025753,9]
[419092310,1774863055075,-500.0,0.00025753,9]
[419092311,1774863055084,-217.56875538,0.00025753,9]
[419092312,1774863055093,-500.0,0.00025753,9]
[419092313,1774863055102,-500.0,0.00025753,7]
[419092314,1774863055112,-508.7,0.00025753,9]
[419092315,1774863055122,-839.98,0.00025753,9]
[419092316,1774863055131,-1035.51,0.00025753,9]
[419092317,1774863055140,-500.0,0.00025753,9]
[419092318,1774863055150,-500.0,0.00025753,9]
[419092319,1774863055159,-500.0,0.00025753,9]
[419092320,1774863055168,-714.85,0.00025753,9]
[419092321,1774863055177,-701.0,0.00025753,9]
[419092322,1774863055186,-500.0,0.00025753,9]
[419092323,1774863055195,-500.0,0.00025753,9]
[419092324,1774863055205,-305.07018931,0.00025753,9]
[419092325,1774863055214,-500.0,0.00025753,9]
[419092326,1774863055223,-500.0,0.00025753,2]
[419092327,1774863055232,-500.0,0.00025753,9]
[419092328,1774863055241,-500.0,0.00025753,9]
[419092329,1774863055251,-364.55089284,0.00025753,9]
[419092330,1774863055259,-350.0,0.00025753,2]
[419092331,1774863055269,-1500.0,0.000259,2]
[419092332,1774863055278,-533.64483459,0.00026,2]
[419092333,1774863055287,-19900.0,0.00026,2]
[419092334,1774863055296,-179.86482046,0.00026,30]
[419092335,1774863055305,-240.0,0.00026,2]
[419092336,1774863055314,-185.0,0.00026,2]
[419092337,1774863055323,-1029.0,0.00026,2]
[419092338,1774863055333,-526.86964896,0.00026027,9]
[419092339,1774863055342,-627.1,0.00026027,9]
[419092340,1774863055351,-500.0,0.00026027,7]
[419092341,1774863055361,-191.4153215,0.00026027,9]
[419092342,1774863055370,-500.0,0.00026027,9]
[419092343,1774863055379,-1000.0,0.00026027,2]
[419092344,1774863055388,-1000.0,0.00026027,2]
[419092345,1774863055398,-500.0,0.00026027,9]
[419092346,1774863055407,-500.0,0.00026027,9]
[419092347,1774863055416,-500.0,0.00026027,9]
[419092348,1774863055426,-280.40856575,0.00026027,9]
[419092349,1774863055435,-500.0,0.00026027,9]
[419092350,1774863055444,-500.0,0.00026027,9]
[419092351,1774863055454,-500.0,0.00026027,9]
[419092352,1774863055463,-472.36086643,0.00026027,9]
[419092353,1774863055472,-500.0,0.00026027,7]
[419092354,1774863055482,-508.7,0.00026027,9]
[419092355,1774863055491,-839.98,0.00026027,9]
[419092356,1774863055500,-1035.51,0.00026027,9]
[419092357,1774863055510,-500.0,0.00026027,9]
[419092358,1774863055519,-500.0,0.00026027,9]
[419092359,1774863055528,-500.0,0.00026027,9]
[419092360,1774863055537,-714.85,0.00026027,9]
[419092361,1774863055546,-701.0,0.00026027,9]
[419092362,1774863055555,-500.0,0.00026027,9]
[419092363,1774863055565,-500.0,0.00026027,9]
[419092364,1774863055575,-500.0,0.00026027,9]
[419092365,1774863055584,-500.0,0.00026027,2]
[419092366,1774863055593,-422.64742426,0.00026027,9]
[419092367,1774863055602,-500.0,0.00026027,9]
[419092368,1774863055611,-500.0,0.00026027,2]
[419092369,1774863055620,-196.03673443,0.0002616,2]
[419092370,1774863055630,-627.1,0.00026301,9]
[419092371,1774863055638,-500.0,0.00026301,7]
[419092372,1774863055647,-500.0,0.00026301,9]
[419092373,1774863055656,-1000.0,0.00026301,2]
[419092374,1774863055666,-1000.0,0.00026301,2]
[419092375,1774863055675,-500.0,0.00026301,9]
[419092376,1774863055684,-296.56824998,0.00026301,9]
[419092377,1774863055694,-500.0,0.00026301,9]
[419092378,1774863055703,-500.0,0.00026301,9]
[419092379,1774863055712,-500.0,0.00026301,9]
[419092380,1774863055722,-500.0,0.00026301,9]
[419092381,1774863055731,-500.0,0.00026301,7]
[419092382,1774863055741,-508.7,0.00026301,9]
[419092383,1774863055750,-839.98,0.00026301,9]
[419092384,1774863055759,-1035.51,0.00026301,9]
[419092385,1774863055769,-500.0,0.00026301,9]
[419092386,1774863055779,-500.0,0.00026301,9]
[419092387,1774863055789,-500.0,0.00026301,9]
[419092388,1774863055799,-714.85,0.00026301,9]
[419092389,1774863055810,-701.0,0.00026301,9]
[419092390,1774863055819,-500.0,0.00026301,9]
[419092391,1774863055828,-500.0,0.00026301,9]
[419092392,1774863055838,-500.0,0.00026301,9]
[419092393,1774863055847,-468.67335109,0.00026301,2]
[419092394,1774863055857,-500.0,0.00026301,9]
[419092395,1774863055866,-450.0,0.00026301,2]
[419092396,1774863055875,-627.1,0.00026575,9]
[419092397,1774863055884,-500.0,0.00026575,7]
[419092398,1774863055894,-500.0,0.00026575,9]
[419092399,1774863055903,-1000.0,0.00026575,2]
[419092400,1774863055913,-1000.0,0.00026575,2]
[419092401,1774863055922,-500.0,0.00026575,9]
[419092402,1774863055931,-500.0,0.00026575,9]
[419092403,1774863055940,-500.0,0.00026575,9]
[419092404,1774863055950,-500.0,0.00026575,9]
[419092405,1774863055959,-500.0,0.00026575,9]
[419092406,1774863055968,-500.0,0.00026575,7]
[419092407,1774863055977,-508.7,0.00026575,9]
[419092408,1774863055986,-839.98,0.00026575,9]
[419092409,1774863055995,-1035.51,0.00026575,9]
[419092410,1774863056005,-500.0,0.00026575,9]
[419092411,1774863056014,-500.0,0.00026575,9]
[419092412,1774863056023,-500.0,0.00026575,9]
[419092413,1774863056033,-714.85,0.00026575,9]
[419092414,1774863056042,-701.0,0.00026575,9]
[419092415,1774863056052,-500.0,0.00026575,9]
[419092416,1774863056061,-500.0,0.00026575,9]
[419092417,1774863056071,-500.0,0.00026575,9]
[419092418,1774863056080,-500.0,0.00026575,9]
[419092419,1774863056089,-1000.0,0.00026575,2]
[419092420,1774863056099,-2624.7061597,0.00026622,2]
[419092421,1774863056108,-627.1,0.00026849,9]
[419092422,1774863056117,-500.0,0.00026849,7]
[419092423,1774863056126,-500.0,0.00026849,9]
[419092424,1774863056135,-1000.0,0.00026849,2]
[419092425,1774863056145,-1000.0,0.00026849,2]
[419092426,1774863056154,-500.0,0.00026849,9]
[419092427,1774863056163,-500.0,0.00026849,9]
[419092428,1774863056173,-500.0,0.00026849,9]
[419092429,1774863056183,-500.0,0.00026849,9]
[419092430,1774863056192,-500.0,0.00026849,9]
[419092431,1774863056201,-500.0,0.00026849,7]
[419092432,1774863056211,-508.7,0.00026849,9]
[419092433,1774863056220,-839.98,0.00026849,9]
[419092434,1774863056230,-1035.51,0.00026849,9]
[419092435,1774863056239,-500.0,0.00026849,9]
[419092436,1774863056248,-548.78645579,0.00026849,9]
[419092437,1774863056258,-197.37012996,0.00026849,9]
[419092438,1774863056267,-714.85,0.00026849,9]
[419092439,1774863056277,-701.0,0.00026849,9]
[419092440,1774863056286,-162.1487771,0.00026849,9]
[419092441,1774863056296,-500.0,0.00026849,9]
[419092442,1774863056305,-500.0,0.00026849,9]
[419092443,1774863056315,-500.0,0.00026849,9]
[419092444,1774863056324,-162.7372914,0.00026849,2]
[419092445,1774863056334,-1500.0,0.000269,2]
[419092446,1774863056343,-317.28955,0.00027,120]
[419092447,1774863056352,-258.86541234,0.00027,2]
[419092448,1774863056362,-186.80634478,0.00027,2]
[419092449,1774863056371,-500.0,0.00027,30]
[419092450,1774863056380,-500.0,0.00027,30]
[419092451,1774863056390,-500.0,0.00027,30]
[419092452,1774863056399,-617.08637756,0.00027,30]
[419092453,1774863056409,-500.0,0.00027,30]
[419092454,1774863056418,-500.0,0.00027,30]
[419092455,1774863056427,-500.0,0.00027,30]
[419092456,1774863056437,-500.0,0.00027,30]
[419092457,1774863056446,-500.0,0.00027,30]
[419092458,1774863056456,-500.0,0.00027,30]
[419092459,1774863056466,-500.0,0.00027,30]
[419092460,1774863056476,-727.93765814,0.00027,30]
[419092461,1774863056485,-500.0,0.00027,30]
[419092462,1774863056495,-500.0,0.00027,30]
[419092463,1774863056505,-570.97437961,0.00027,30]
[419092464,1774863056515,-1029.0,0.00027,2]
[419092465,1774863056524,-627.1,0.00027123,9]
[419092466,1774863056534,-500.0,0.00027123,7]
[419092467,1774863056544,-500.0,0.00027123,9]
[419092468,1774863056554,-1000.0,0.00027123,2]
[419092469,1774863056563,-1000.0,0.00027123,2]
[419092470,1774863056572,-447.28034448,0.00027123,9]
[419092471,1774863056581,-500.0,0.00027123,9]
[419092472,1774863056591,-500.0,0.00027123,9]
[419092473,1774863056600,-156.34449818,0.00027123,9]
[419092474,1774863056609,-500.0,0.00027123,9]
[419092475,1774863056698,-500.0,0.00027123,7]
[419092476,1774863056709,-508.7,0.00027123,9]
[419092477,1774863056719,-839.98,0.00027123,9]
[419092478,1774863056728,-1035.51,0.00027123,9]
[419092479,1774863056738,-500.0,0.00027123,9]
[419092480,1774863056748,-714.85,0.00027123,9]
[419092481,1774863056757,-701.0,0.00027123,9]
[419092482,1774863056767,-500.0,0.00027123,9]
[419092483,1774863056776,-500.0,0.00027123,9]
[419092484,1774863056786,-500.0,0.00027123,9]
[419092485,1774863056795,-1563.66875734,0.00027123,2]
[419092486,1774863056805,-1000.0,0.00027164,30]
[419092487,1774863056815,-1000.0,0.00027164,30]
[419092488,1774863056825,-184.0,0.00027184,2]
[419092489,1774863056835,-196.1918996,0.00027257,2]
[419092490,1774863056844,-176.38325194,0.0002738,120]
[419092491,1774863056853,-150.0,0.0002739,2]
[419092492,1774863056862,-824.10787932,0.00027396,60]
[419092493,1774863056873,-824.10787932,0.00027396,60]
[419092494,1774863056882,-824.10787932,0.00027396,60]
[419092495,1774863056892,-824.10787932,0.00027396,60]
[419092496,1774863056901,-824.10787932,0.00027396,60]
[419092497,1774863056911,-824.10787932,0.00027396,60]
[419092498,1774863056920,-824.10787932,0.00027396,60]
[419092499,1774863056929,-824.10787932,0.00027396,60]
[419092500,1774863056938,-824.10787932,0.00027396,60]
[419092501,1774863056947,-824.10787932,0.00027396,60]
[419092502,1774863056956,-824.10787932,0.00027396,60]
[419092503,1774863056965,-824.10787932,0.00027396,60]
[419092504,1774863056974,-824.10787931,0.00027396,60]
[419092505,1774863056983,-824.10787931,0.00027396,60]
[419092506,1774863056993,-627.1,0.00027397,9]
[419092507,1774863057002,-500.0,0.00027397,7]
[419092508,1774863057011,-500.0,0.00027397,9]
[419092509,1774863057020,-1000.0,0.00027397,2]
[419092510,1774863057030,-1000.0,0.00027397,2]
[419092511,1774863057039,-809.56715073,0.00027397,2]
[419092512,1774863057048,-500.0,0.00027397,9]
[419092513,1774863057057,-500.0,0.00027397,9]
[419092514,1774863057066,-500.0,0.00027397,7]
[419092515,1774863057076,-508.7,0.00027397,9]
[419092516,1774863057085,-839.98,0.00027397,9]
[419092517,1774863057095,-1035.51,0.00027397,9]
[419092518,1774863057105,-500.0,0.00027397,9]
[419092519,1774863057114,-714.85,0.00027397,9]
[419092520,1774863057124,-701.0,0.00027397,9]
[419092521,1774863057133,-500.0,0.00027397,9]
[419092522,1774863057142,-573.63967977,0.00027397,9]
[419092523,1774863057151,-500.0,0.00027397,9]
[419092524,1774863057161,-227.02001426,0.00027397,2]
[419092525,1774863057170,-158.91400998,0.00027397,2]
[419092526,1774863057180,-327.61196043,0.00027397,2]
[419092527,1774863057189,-344.995268,0.00027397,2]
[419092528,1774863057198,-344.995268,0.00027397,2]
[419092529,1774863057207,-344.995268,0.00027397,2]
[419092530,1774863057216,-344.995268,0.00027397,2]
[419092531,1774863057225,-344.995268,0.00027397,2]
[419092532,1774863057234,-344.995268,0.00027397,2]
[419092533,1774863057244,-442.02743,0.00027397,2]
[419092534,1774863057253,-442.02743,0.00027397,2]
[419092535,1774863057264,-344.995268,0.00027397,2]
[419092536,1774863057274,-442.02743,0.00027397,2]
[419092537,1774863057284,-344.995268,0.00027397,2]
[419092538,1774863057294,-442.02743,0.00027397,2]
[419092539,1774863057304,-442.02743,0.00027397,2]
[419092540,1774863057316,-442.02743,0.00027397,2]
[419092541,1774863057326,-442.02743,0.00027397,2]
[419092542,1774863057335,-442.02743,0.00027397,2]
[419092543,1774863057344,-3332158.0874,0.00027444,2]
[419092544,1774863057353,-151.0,0.00027444,7]
[419092545,1774863057362,-151.0,0.00027444,7]
[419092546,1774863057372,-151.0,0.00027444,7]
[419092547,1774863057382,-222.050866,0.00027444,7]
[419092548,1774863057391,-2836.716383,0.00027444,7]
[419092549,1774863057401,-2836.716383,0.00027444,7]